bitfinex/quotes_SOLUSD_20250601
["timestamp","ask_amount","ask_price","bid_price","bid_amount"]
[1748779645183,6.592827,151.68,151.62,59.10964886]
[1748779647085,6.592827,151.68,151.62,65.70476771]
[1748779647480,6.592827,151.68,151.62,59.10964886]
[1748779647880,6.592827,151.68,151.62,18.64964886]
[1748779672709,23.07489451,151.68,151.6,10.5]
[1748779673007,23.07489451,151.68,151.59,18.64964886]
[1748779673387,23.07489451,151.68,151.59,25.2462091]
[1748779674592,6.592827,151.68,151.59,65.5862091]
[1748779675488,6.592827,151.68,151.59,76.0862091]
[1748779676007,6.592827,151.68,151.59,92.57806212]
[1748779677114,6.592827,151.68,151.62,18.64964886]
[1748779678188,6.592827,151.68,151.62,25.24502751]
[1748779680693,6.592827,151.68,151.61,12.70865774]
[1748779680899,6.592827,151.68,151.62,18.64964886]
[1748779683299,6.592827,151.68,151.62,25.24479182]
[1748779683610,6.59253471,151.69,151.62,25.24479182]
[1748779684601,33.41858496,151.68,151.59,18.64964886]
[1748779685627,23.07641589,151.67,151.59,18.64964886]
[1748779688125,23.07641589,151.67,151.58,0.5492786]
[1748779688126,1.5673,151.66,151.58,0.5492786]
[1748779689725,6.59413122,151.65,151.58,0.5492786]
[1748779691315,23.07945927,151.65,151.58,0.5492786]
[1748779694222,49.07945927,151.65,151.58,0.5492786]
[1748779699310,148.13332398,151.64,151.58,0.5492786]
[1748779699523,148.13332398,151.63,151.58,0.5492786]
[1748779701209,23.08402584,151.62,151.58,0.5492786]
[1748779704213,6.59543595,151.62,151.58,0.5492786]
[1748779718946,23.08402584,151.62,151.58,0.5492786]
[1748779729443,6.59543595,151.62,151.58,0.5492786]
[1748779740693,148.13332398,151.63,151.58,7.14628024]
[1748779740973,20.1554978,151.68,151.58,7.14628024]
[1748779740974,155.55190894,151.68,151.62,18.64964886]
[1748779741141,7.41858496,151.68,151.62,18.64964886]
[1748779741466,7.41858496,151.68,151.62,25.17864886]
[1748779741669,7.41858496,151.68,151.64,18.64964886]
[1748779742767,7.41858496,151.68,151.64,25.24411082]
[1748779747267,7.41858496,151.68,151.63,1.6127]
[1748779747753,14.01144581,151.68,151.63,1.6127]
[1748779750462,14.01144581,151.68,151.63,8.20761322]
[1748779750967,7.41858496,151.68,151.64,18.64964886]
[1748779752468,7.41858496,151.68,151.64,25.2438776]
[1748779768586,7.41858496,151.68,151.64,41.73029279]
[1748779769596,7.41858496,151.68,151.64,67.73029279]
[1748779775306,7.41858496,151.68,151.67,44.64964886]
[1748779775489,7.41858496,151.68,151.67,95.08964886]
[1748779777108,7.41858496,151.68,151.67,101.68291054]
[1748779793934,7.41858496,151.68,151.67,101.96723368]
[1748779794497,7.41858496,151.68,151.67,109.63543368]
[1748779801531,1.5674,151.79,151.72,18.64964886]
[1748779801710,1.5674,151.79,151.73,50.42]
[1748779802708,1.5674,151.79,151.75,18.64964886]
[1748779804117,8.1554635,151.79,151.75,18.64964886]
[1748779804311,8.1554635,151.79,151.73,50.42]
[1748779807232,8.1554635,151.79,151.73,10.32]
[1748779813319,1.6599,151.77,151.66,28.94964886]
[1748779813525,1.6599,151.77,151.67,26.0]
[1748779813744,1.6599,151.77,151.68,18.64964886]
[1748779814643,6.5893516,151.76,151.69,6.59239237]
[1748779816525,6.5893516,151.76,151.69,46.69239237]
[1748779817330,8.24896708,151.77,151.72,18.64964886]
[1748779818629,8.24896708,151.77,151.72,25.24062671]
[1748779819142,8.24896708,151.77,151.72,18.64964886]
[1748779822635,8.24896708,151.77,151.72,25.2406516]
[1748779823846,1.6599,151.77,151.72,25.2406516]
[1748779824932,6.58804927,151.79,151.72,25.2406516]
[1748779825148,149.64202398,151.81,151.75,26.0]
[1748779825354,1.5087,151.81,151.75,26.0]
[1748779826067,25.67491771,151.84,151.76,28.94964886]
[1748779826068,21.96121987,151.84,151.76,28.94964886]
[1748779826265,6.58630216,151.84,151.76,28.94964886]
[1748779826563,8.09429286,151.85,151.77,0.28432314]
[1748779826941,8.09429286,151.85,151.79,18.64964886]
[1748779827168,8.09429286,151.85,151.79,58.74964886]
[1748779828164,8.09429286,151.85,151.79,65.33738063]
[1748779830466,6.58499566,151.87,151.79,65.33738063]
[1748779831845,6.58414537,151.88,151.79,65.33738063]
[1748779832062,6.58414537,151.88,151.8,0.28432314]
[1748779832260,6.58414537,151.88,151.81,18.64964886]
[1748779832466,6.58414537,151.88,151.81,44.64964886]
[1748779834760,6.58414537,151.88,151.81,51.23656323]
[1748779837288,8.21108657,151.89,151.82,0.28432314]
[1748779837578,8.21108657,151.89,151.85,18.64964886]
[1748779840255,148.13332398,151.93,151.85,18.64964886]
[1748779841054,6.58241179,151.92,151.85,25.2350154]
[1748779844693,6.58241179,151.92,151.85,35.5350154]
[1748779845365,6.58241179,151.92,151.85,28.94964886]
[1748779845561,23.03844127,151.92,151.85,28.94964886]
[1748779849970,23.03844127,151.92,151.85,18.64964886]
[1748779859389,16.45602948,151.92,151.85,6.58540954]
[1748779859580,16.45602948,151.92,151.86,18.64964886]
[1748779859903,16.45602948,151.92,151.84,18.64964886]
[1748779861591,16.45602948,151.92,151.84,25.23534101]
[1748779862477,16.45602948,151.92,151.84,18.64964886]
[1748779862702,16.45602948,151.92,151.84,25.23551196]
[1748779864988,6.58197854,151.93,151.84,25.23551196]
[1748779866621,6.58197854,151.93,151.85,0.28432314]
[1748779867203,6.58197854,151.93,151.86,6.58501251]
[1748779868116,6.58197854,151.93,151.84,18.64964886]
[1748779868117,23.03692489,151.93,151.84,18.64964886]
[1748779868290,23.03692489,151.93,151.86,18.64964886]
[1748779868494,29.15072489,151.93,151.86,18.64964886]
[1748779871297,23.03692489,151.93,151.86,18.64964886]
[1748779872523,6.58197854,151.93,151.86,25.23458553]
[1748779873689,6.58197854,151.93,151.86,18.64964886]
[1748779876010,6.58197854,151.93,151.86,25.23451686]
[1748779881613,8.16525102,151.94,151.86,25.23451686]
[1748779882831,149.64462398,151.97,151.9,18.64964886]
[1748779883032,6.1104,152.0,151.9,68.98964886]
[1748779883033,154.24372398,152.0,151.9,68.98964886]
[1748779883205,148.13332398,152.0,151.93,26.0]
[1748779883402,154.71241771,152.0,151.94,18.64964886]
[1748779883606,8.08997809,152.01,151.94,18.64964886]
[1748779884609,6.57778906,152.03,151.95,40.04]
[1748779884804,6.57734742,152.04,151.98,18.64964886]
[1748779888616,23.02038872,152.04,151.96,58.68964886]
[1748779890535,23.02038872,152.04,151.96,65.27026012]
[1748779890850,23.02038872,152.04,151.96,58.68964886]
[1748779892150,49.02038872,152.04,151.95,10.3]
[1748779892524,49.02038872,152.04,151.95,18.64964886]
[1748779892825,49.02038872,152.04,151.93,46.64196428]
[1748779894141,49.02038872,152.04,151.94,18.64964886]
[1748779894840,49.02038872,152.04,151.94,25.23111847]
[1748779896356,6.57734742,152.04,151.97,18.64964886]
[1748779896526,6.57734742,152.04,151.97,25.22970688]
[1748779897923,6.57734742,152.04,151.99,18.64964886]
[1748779898744,6.57734742,152.04,151.99,25.22899361]
[1748779900122,6.57734742,152.04,151.99,18.64964886]
[1748779903650,6.57678395,152.05,151.99,18.64964886]
[1748779904248,6.57678395,152.05,151.99,25.2289262]
[1748779905354,6.57678395,152.05,151.99,18.64964886]
[1748779906253,6.57678395,152.05,151.99,25.2290245]
[1748779906557,6.57591898,152.07,151.99,51.2290245]
[1748779911962,23.01571644,152.07,151.99,44.64964886]
[1748779912137,23.01571644,152.07,152.01,18.64964886]
[1748779915731,6.57505424,152.09,152.0,25.22858781]
[1748779915931,6.57505424,152.09,152.04,18.64964886]
[1748779917059,6.57462195,152.1,152.04,18.64964886]
[1748779917563,6.57462195,152.1,152.04,25.22684345]
[1748779918068,154.70768592,152.11,152.04,75.56684345]
[1748779919262,148.13332398,152.11,152.04,75.56684345]
[1748779920259,154.70763305,152.11,152.04,75.56684345]
[1748779920879,154.70763305,152.11,152.04,28.94964886]
[1748779922768,243.68260737,152.11,152.01,26.0]
[1748779922949,243.68260737,152.11,152.02,18.64964886]
[1748779923854,243.68260737,152.11,152.01,18.64964886]
[1748779924258,26.0,152.08,152.0,10.3]
[1748779924449,41.5191,152.07,152.0,10.3]
[1748779924648,41.5191,152.07,151.99,18.64964886]
[1748779925640,6.57635144,152.06,151.99,18.64964886]
[1748779930372,23.01723004,152.06,151.97,18.64964886]
[1748779931073,148.13332398,152.05,151.96,36.3]
[1748779931271,148.13332398,152.05,151.97,18.64964886]
[1748779932476,6.57721652,152.04,151.97,25.22979758]
[1748779942681,1.5191,152.07,152.0,18.64964886]
[1748779943081,6.57548658,152.08,152.0,18.64964886]
[1748779943912,6.57548658,152.08,152.0,28.92964886]
[1748779944075,148.13332398,152.09,152.0,28.92964886]
[1748779944268,148.13332398,152.09,152.03,26.0]
[1748779944596,154.70847905,152.09,152.04,6.57721652]
[1748779944774,1.6375,152.11,152.04,6.57721652]
[1748779945277,8.21180124,152.11,152.04,6.57721652]
[1748779945610,8.21180124,152.11,152.05,18.64964886]
[1748779946377,8.21180124,152.11,152.05,25.22640013]
[1748779947411,6.57385051,152.12,152.05,25.22640013]
[1748779952685,102.2863,152.15,152.07,18.64964886]
[1748779952686,1.5778,152.15,152.07,18.64964886]
[1748779952889,184.41332398,152.17,152.07,18.64964886]
[1748779953072,6.57202944,152.16,152.07,18.64964886]
[1748779954101,6.57202944,152.16,152.08,6.57548658]
[1748779954895,158.41332398,152.17,152.08,6.57548658]
[1748779954896,154.70499518,152.17,152.09,58.81181043]
[1748779955085,6.5716712,152.17,152.09,58.81181043]
[1748779955697,6.5716712,152.17,152.09,84.81181043]
[1748779955903,6.57116572,152.18,152.1,6.57462195]
[1748779957076,6.57116572,152.18,152.11,6.57390225]
[1748779964685,6.07116572,152.18,152.11,6.57390225]
[1748779964881,6.57089688,152.19,152.11,6.57390225]
[1748779965080,6.57089688,152.19,152.13,18.64964886]
[1748779965892,148.13332398,152.21,152.14,0.14216157]
[1748779966197,148.13332398,152.21,152.15,18.64964886]
[1748779966995,154.70335832,152.21,152.15,18.64964886]
[1748779968894,6.56943896,152.22,152.15,18.64964886]
[1748779969089,22.99303638,152.22,152.15,18.64964886]
[1748779969293,22.99303638,152.22,152.13,26.0]
[1748779969598,29.29573638,152.22,152.13,26.0]
[1748779969801,69.31573638,152.22,152.13,26.0]
[1748779971001,69.31573638,152.22,152.12,18.64964886]
[1748779971301,69.31573638,152.22,152.12,25.22335153]
[1748779975506,29.29573638,152.22,152.12,25.22335153]
[1748779978715,6.56943896,152.22,152.13,0.14216157]
[1748779980117,6.56943896,152.22,152.15,18.64964886]
[1748779981521,6.56943896,152.22,152.17,18.64964886]
[1748779982193,6.56943896,152.22,152.16,18.64964886]
[1748779986517,6.56943896,152.22,152.16,6.57200508]
[1748779988122,6.56943896,152.22,152.15,25.22193555]
[1748779997513,6.56857593,152.24,152.17,18.64964886]
[1748779998935,6.56857593,152.24,152.19,18.64964886]
[1748780000615,6.56857593,152.24,152.17,25.22111278]
[1748780001831,154.70164184,152.25,152.18,1.6476]
[1748780002025,148.13332398,152.29,152.21,18.64964886]
[1748780002332,6.56598818,152.3,152.23,18.64964886]
[1748780004111,6.56512605,152.32,152.23,51.21856473]
[1748780004312,6.56512605,152.32,152.24,10.28]
[1748780005529,6.56512605,152.32,152.24,16.84839143]
[1748780005714,22.97794117,152.32,152.24,10.28]
[1748780005905,22.97794117,152.32,152.25,18.64964886]
[1748780010822,22.97794117,152.32,152.24,10.28]
[1748780012935,22.97794117,152.32,152.25,18.64964886]
[1748780013717,6.56512605,152.32,152.25,18.64964886]
[1748780014836,6.56512605,152.32,152.27,18.64964886]
[1748780015325,154.69818394,152.33,152.27,18.64964886]
[1748780015526,154.69818394,152.33,152.27,58.60964886]
[1748780017148,6.93799645,152.35,152.29,18.64964886]
[1748780018242,6.93799645,152.35,152.29,6.56626326]
[1748780018448,6.93799645,152.35,152.29,16.82626326]
[1748780022932,6.93799645,152.35,152.3,18.79181043]
[1748780022933,0.3737853,152.35,152.3,18.79181043]
[1748780023128,0.3737853,152.35,152.3,18.64964886]
[1748780023748,0.3737853,152.35,152.3,25.21550672]
[1748780027239,6.9376715,152.35,152.3,25.21550672]
[1748780027438,0.3737853,152.35,152.3,25.21550672]
[1748780028258,0.3737853,152.35,152.31,0.14216157]
[1748780028498,0.3737853,152.35,152.34,52.84234886]
[1748780028637,0.3737853,152.35,152.34,63.24451043]
[1748780029157,0.3737853,152.35,152.34,63.386672]
[1748780029855,0.3737853,152.35,152.34,63.24451043]
[1748780030038,0.3737853,152.35,152.34,69.666613]
[1748780030244,0.3737853,152.35,152.34,56.55724886]
[1748780030450,0.3737853,152.35,152.34,61.473913]
[1748780039169,0.3737853,152.35,152.34,54.90964886]
[1748780039370,0.3737853,152.35,152.34,61.473913]
[1748780039566,0.3737853,152.35,152.34,54.90964886]
[1748780039944,0.3737853,152.35,152.34,10.26]
[1748780041271,0.3737853,152.35,152.3,18.64964886]
[1748780041272,6.93761857,152.35,152.3,18.64964886]
[1748780046753,6.93761857,152.35,152.29,10.26]
[1748780047073,23.34720176,152.35,152.28,18.64964886]
[1748780048976,23.34720176,152.35,152.28,25.21643526]
[1748780049682,6.93761857,152.35,152.29,18.64964886]
[1748780050063,6.93761857,152.35,152.28,25.21643526]
[1748780054782,6.93761857,152.35,152.28,65.15643526]
[1748780055357,6.93761857,152.35,152.27,44.62468534]
[1748780055557,6.93761857,152.35,152.28,18.64964886]
[1748780055558,23.34720176,152.35,152.28,18.64964886]
[1748780055869,23.34720176,152.35,152.27,12.05754959]
[1748780056176,1.5029,152.34,152.27,12.05754959]
[1748780058286,6.56469506,152.33,152.27,12.05754959]
[1748780061690,22.97643273,152.33,152.27,12.05754959]
[1748780062393,6.56469506,152.33,152.27,12.05754959]
[1748780062771,6.56469506,152.33,152.27,18.62474842]
[1748780063887,6.56440932,152.34,152.28,18.64964886]
[1748780065788,6.93778827,152.35,152.3,18.64964886]
[1748780070793,6.93778827,152.35,152.3,25.21556466]
[1748780070989,0.3737853,152.35,152.3,25.21556466]
[1748780071295,0.3737853,152.35,152.32,18.64964886]
[1748780072593,0.3737853,152.35,152.32,25.21469577]
[1748780074470,0.3737853,152.35,152.32,18.64964886]
[1748780075179,6.93768911,152.35,152.3,28.92964886]
[1748780075699,6.93768911,152.35,152.3,35.49550898]
[1748780075999,6.93768911,152.35,152.3,28.92964886]
[1748780078680,6.93768911,152.35,152.27,12.05754959]
[1748780078882,6.93768911,152.35,152.28,18.64964886]
[1748780079979,6.93768911,152.35,152.28,25.21647169]
[1748780085203,26.0,152.32,152.27,12.05754959]
[1748780086399,6.56555708,152.31,152.27,12.05754959]
[1748780087508,26.0,152.32,152.27,12.05754959]
[1748780089489,6.56555708,152.31,152.27,12.05754959]
[1748780091207,22.97716458,152.33,152.27,12.05754959]
[1748780099123,171.11048856,152.33,152.27,12.05754959]
[1748780102245,154.69801904,152.33,152.27,12.05754959]
[1748780102954,0.3737853,152.35,152.28,18.64964886]
[1748780103129,0.3737853,152.35,152.28,28.90964886]
[1748780104314,0.3737853,152.35,152.3,18.64964886]
[1748780106534,6.93786746,152.35,152.28,10.26]
[1748780106737,6.93786746,152.35,152.27,12.05754959]
[1748780106738,8.52826746,152.35,152.27,12.05754959]
[1748780106937,26.0,152.34,152.27,12.05754959]
[1748780108943,22.97643273,152.33,152.27,12.05754959]
[1748780112327,26.0,152.29,152.27,12.05754959]
[1748780112520,6.56685053,152.28,152.27,12.05754959]
[1748780114963,25.21649939,152.28,152.27,4.34754959]
[1748780115325,25.21649939,152.28,152.16,37.9171]
[1748780115326,18.64964886,152.27,152.16,37.9171]
[1748780115563,10.3,152.26,152.16,37.9171]
[1748780115865,18.36157739,152.26,152.16,37.9171]
[1748780116089,44.36157739,152.26,152.16,11.9171]
[1748780116433,44.36157739,152.26,152.16,1.6171]
[1748780116950,22.98850573,152.25,152.16,1.6171]
[1748780118042,22.98850573,152.25,152.16,8.18889198]
[1748780120224,22.98850573,152.25,152.16,1.6171]
[1748780120428,26.28962392,152.25,152.16,1.6171]
[1748780120848,26.28962392,152.25,152.14,32.326]
[1748780121055,26.28962392,152.25,152.14,38.89870367]
[1748780122380,26.28962392,152.25,152.14,32.326]
[1748780122582,26.28962392,152.25,152.14,38.89886042]
[1748780124571,26.28962392,152.25,152.15,18.64964886]
[1748780125572,174.4229479,152.25,152.15,25.22173877]
[1748780127659,154.70146847,152.25,152.15,25.22173877]
[1748780127867,154.70146847,152.25,152.18,26.0]
[1748780128186,8.06157739,152.26,152.21,18.64964886]
[1748780129487,148.13332398,152.29,152.22,6.56943896]
[1748780131163,154.69986209,152.29,152.22,6.56943896]
[1748780131566,16.86614157,152.3,152.23,18.64964886]
[1748780131968,6.56614157,152.3,152.23,58.66964886]
[1748780132170,14.93116772,152.32,152.24,26.0]
[1748780132477,14.93116772,152.32,152.25,20.31404886]
[1748780132680,14.93116772,152.32,152.25,1.6644]
[1748780132979,14.93116772,152.32,152.24,26.0]
[1748780133695,14.93116772,152.32,152.24,32.56848452]
[1748780135063,14.93116772,152.32,152.25,18.64964886]
[1748780137174,14.93116772,152.32,152.25,25.21773794]
[1748780137575,14.93116772,152.32,152.24,32.56841552]
[1748780141487,14.93116772,152.32,152.24,72.58841552]
[1748780142268,161.66631478,152.34,152.25,25.21737549]
[1748780142269,164.9980165,152.34,152.25,25.21737549]
[1748780142470,164.9980165,152.34,152.27,18.64964886]
[1748780143679,164.9980165,152.34,152.28,6.56685053]
[1748780144597,148.13332398,152.34,152.29,58.66964886]
[1748780144900,6.93772632,152.35,152.29,58.66964886]
[1748780145598,6.93772632,152.35,152.29,65.23572258]
[1748780149485,23.34730951,152.35,152.27,26.0]
[1748780149792,23.34730951,152.35,152.24,99.92]
[1748780149793,55.92670951,152.35,152.25,46.58810221]
[1748780151280,55.92670951,152.35,152.25,40.02]
[1748780151605,55.92670951,152.35,152.25,46.58793777]
[1748780155501,55.92670951,152.35,152.25,40.02]
[1748780155680,55.92670951,152.35,152.24,61.53815437]
[1748780155880,55.92670951,152.35,152.24,82.88850551]
[1748780157103,88.7458759,152.35,152.24,76.32]
[1748780157603,88.7458759,152.35,152.24,36.32]
[1748780157905,88.7458759,152.35,152.24,76.3]
[1748780158603,88.7458759,152.35,152.24,82.86854629]
[1748780158805,88.7458759,152.35,152.24,76.3]
[1748780159007,10.32,152.34,152.24,76.3]
[1748780160789,22.97643273,152.33,152.24,76.3]
[1748780160992,1.5367,152.32,152.24,10.32]
[1748780161177,1.5367,152.32,152.22,32.4315]
[1748780161178,1.5367,152.32,152.23,39.98]
[1748780161381,1.5367,152.32,152.22,32.4315]
[1748780161595,1.5367,152.32,152.22,72.4115]
[1748780161800,1.5367,152.32,152.22,39.00087728]
[1748780162009,1.5367,152.32,152.22,78.98087728]
[1748780162199,1.5367,152.32,152.22,39.00087728]
[1748780162397,1.5367,152.32,152.23,39.98]
[1748780162795,22.97944979,152.31,152.23,39.98]
[1748780164604,22.97944979,152.31,152.22,32.4315]
[1748780164605,22.97944979,152.31,152.21,18.64964886]
[1748780165281,22.97944979,152.31,152.21,25.21949368]
[1748780166801,6.56555708,152.31,152.23,18.64964886]
[1748780166991,6.56555708,152.31,152.24,6.0372]
[1748780168997,6.56555708,152.31,152.24,12.60573741]
[1748780169909,6.56555708,152.31,152.25,40.0]
[1748780170512,22.97944979,152.31,152.25,40.0]
[1748780172333,48.97944979,152.31,152.21,25.21940844]
[1748780172629,1.5627,152.3,152.22,40.0]
[1748780173310,1.5627,152.3,152.2,42.3572]
[1748780173492,1.5627,152.3,152.2,56.3772]
[1748780174391,22.98397687,152.28,152.2,16.3572]
[1748780176925,22.98397687,152.28,152.2,62.92744119]
[1748780177100,6.56685053,152.28,152.21,18.64964886]
[1748780178702,22.98397687,152.28,152.2,50.32]
[1748780182129,22.98397687,152.28,152.2,10.32]
[1748780184299,6.56685053,152.28,152.21,18.64964886]
[1748780184539,6.56685053,152.28,152.21,25.26704886]
[1748780185726,154.69986442,152.29,152.22,32.56943896]
[1748780186028,154.69986442,152.29,152.23,18.64964886]
[1748780191013,171.11591274,152.29,152.22,26.0]
[1748780191622,172.67411274,152.29,152.22,26.0]
[1748780195131,171.11591274,152.29,152.22,32.56932366]
[1748780195636,171.11591274,152.29,152.22,26.0]
[1748780200531,211.11591274,152.29,152.22,26.0]
[1748780208359,154.69986442,152.29,152.22,32.5693276]
[1748780208537,154.69986442,152.29,152.22,38.6170276]
[1748780208734,154.69986442,152.29,152.23,18.64964886]
[1748780208938,154.69986442,152.29,152.24,46.54857593]
[1748780209961,154.69986442,152.29,152.24,39.98]
[1748780214434,6.56654044,152.29,152.24,39.98]
[1748780216148,22.98258876,152.29,152.22,26.0]
[1748780217575,22.98258876,152.29,152.2,18.64964886]
[1748780217864,1.6403,152.28,152.18,124.92154886]
[1748780218072,22.98699592,152.26,152.18,101.28154886]
[1748780220562,22.98699592,152.26,152.18,107.85263712]
[1748780220873,154.70074509,152.27,152.21,26.0]
[1748780221038,148.13332398,152.27,152.22,18.64964886]
[1748780221243,6.56701705,152.28,152.22,18.64964886]
[1748780221774,6.56670831,152.29,152.22,18.64964886]
[1748780221943,16.86614033,152.3,152.22,18.64964886]
[1748780222147,16.86614033,152.3,152.25,32.56796794]
[1748780222345,6.56614033,152.3,152.25,32.56796794]
[1748780222655,6.56614033,152.3,152.25,26.0]
[1748780227561,6.56614033,152.3,152.24,40.0]
[1748780233386,6.56614033,152.3,152.24,46.56836221]
[1748780233556,6.56614033,152.3,152.24,6.56836221]
[1748780234179,0.3737853,152.35,152.3,18.64964886]
[1748780234350,0.3737853,152.35,152.31,40.04]
[1748780234776,6.93778298,152.35,152.31,40.04]
[1748780237675,6.93778298,152.35,152.29,40.04]
[1748780239201,6.93778298,152.35,152.28,6.56677339]
[1748780239394,6.93778298,152.35,152.29,40.04]
[1748780239774,6.93778298,152.35,152.29,46.60634894]
[1748780241085,0.3737853,152.35,152.29,46.60634894]
[1748780241301,0.3737853,152.35,152.3,18.64964886]
[1748780241892,0.3737853,152.35,152.3,44.64964886]
[1748780243201,0.3737853,152.35,152.32,18.64964886]
[1748780243404,0.3737853,152.35,152.33,40.04]
[1748780251783,6.93769549,152.35,152.3,26.0]
[1748780252005,6.93769549,152.35,152.31,39.98]
[1748780252887,6.93769549,152.35,152.28,16.84677659]
[1748780253096,6.93769549,152.35,152.29,39.98]
[1748780254006,23.34727868,152.35,152.28,10.28]
[1748780254509,23.34727868,152.35,152.27,84.64964886]
[1748780255283,23.34727868,152.35,152.27,91.21672221]
[1748780257204,23.34727868,152.35,152.28,40.0]
[1748780257391,6.93769549,152.35,152.28,46.56675024]
[1748780257592,6.93769549,152.35,152.29,18.64964886]
[1748780258888,6.93769549,152.35,152.29,25.21597639]
[1748780261998,0.3737853,152.35,152.29,25.21597639]
[1748780262490,0.3737853,152.35,152.29,43.30347639]
[1748780264697,6.93772766,152.35,152.29,43.30347639]
[1748780267397,6.93772766,152.35,152.29,18.64964886]
[1748780267618,6.93772766,152.35,152.3,39.98]
[1748780269103,0.3737853,152.35,152.3,46.54565229]
[1748780270520,6.93763685,152.35,152.3,46.54565229]
[1748780271020,6.93763685,152.35,152.3,39.98]
[1748780273716,6.93763685,152.35,152.29,58.60964886]
[1748780278205,6.93763685,152.35,152.29,18.64964886]
[1748780278410,6.93763685,152.35,152.29,58.60964886]
[1748780283431,6.93763685,152.35,152.29,65.17605795]
[1748780283630,6.93763685,152.35,152.29,58.60964886]
[1748780283843,6.93763685,152.35,152.29,65.17604773]
[1748780284232,6.93763685,152.35,152.3,26.0]
[1748780285249,0.3737853,152.35,152.31,18.64964886]
[1748780286450,6.93775654,152.35,152.31,18.64964886]
[1748780288147,6.93775654,152.35,152.29,39.96]
[1748780289851,24.88973973,152.35,152.28,39.94]
[1748780292850,30.91143973,152.35,152.27,10.3]
[1748780293041,148.13332398,152.34,152.26,39.94]
[1748780293242,148.13332398,152.34,152.25,74.0473]
[1748780293243,158.43332398,152.34,152.25,74.0473]
[1748780293442,158.43332398,152.34,152.25,26.0]
[1748780293640,166.58277587,152.34,152.25,26.0]
[1748780293840,166.58277587,152.34,152.2,119.56157692]
[1748780293841,26.0,152.3,152.19,16.87063067]
[1748780294043,26.0,152.3,152.17,24.46474239]
[1748780294044,16.3217,152.29,152.17,18.3368]
[1748780294244,16.3217,152.29,152.18,39.98]
[1748780294447,21.438943,152.29,152.17,44.3368]
[1748780294755,26.0,152.26,152.17,50.28]
[1748780294934,26.0,152.26,152.17,10.3]
[1748780295661,26.0,152.26,152.17,16.87158116]
[1748780295830,6.56814449,152.25,152.17,16.87158116]
[1748780296455,6.56814449,152.25,152.17,10.3]
[1748780297734,22.98850573,152.25,152.17,10.3]
[1748780298054,22.98850573,152.25,152.16,26.0]
[1748780298055,10.3,152.24,152.16,26.0]
[1748780298441,10.3,152.24,152.14,65.2025274]
[1748780298642,10.3,152.24,152.15,26.0]
[1748780299747,10.3,152.24,152.15,32.57227676]
[1748780299748,6.56900742,152.23,152.15,32.57227676]
[1748780302443,6.56900742,152.23,152.15,72.55227676]
[1748780304460,6.56900742,152.23,152.15,32.57227676]
[1748780304668,22.99152597,152.23,152.15,26.0]
[1748780307861,22.99152597,152.23,152.13,58.3368]
[1748780308073,149.78992398,152.22,152.13,44.3368]
[1748780308235,149.78992398,152.22,152.13,84.3368]
[1748780308959,6.56987057,152.21,152.13,84.3368]
[1748780309145,22.994547,152.21,152.13,84.3368]
[1748780309353,22.994547,152.21,152.13,36.3]
[1748780309774,26.20644196,152.21,152.13,36.3]
[1748780310473,26.20644196,152.21,152.13,42.8732965]
[1748780310669,22.994547,152.21,152.13,42.8732965]
[1748780311955,6.56987057,152.21,152.14,18.64964886]
[1748780313079,6.56987057,152.21,152.15,6.57246138]
[1748780316970,9.80675654,152.23,152.16,18.64964886]
[1748780316971,6.56900742,152.23,152.16,18.64964886]
[1748780318176,6.56900742,152.23,152.17,6.57159755]
[1748780318756,160.07232398,152.26,152.17,6.57159755]
[1748780320163,6.56814449,152.25,152.17,6.57159755]
[1748780321079,6.56814449,152.25,152.19,6.57073395]
[1748780321308,6.56814449,152.25,152.18,6.57104775]
[1748780323381,6.56814449,152.25,152.17,25.22113912]
[1748780326765,6.56784257,152.26,152.18,10.28]
[1748780326979,6.56641933,152.29,152.21,33.9698]
[1748780327184,6.56641933,152.29,152.22,18.64964886]
[1748780328170,6.56641933,152.29,152.22,25.21899869]
[1748780329569,164.97944665,152.3,152.22,25.21899869]
[1748780329777,16.84612267,152.3,152.22,25.21899869]
[1748780330672,16.84612267,152.3,152.22,18.64964886]
[1748780330874,33.26109312,152.3,152.21,33.9698]
[1748780331068,33.26109312,152.3,152.21,7.9698]
[1748780331386,33.26109312,152.3,152.21,14.53954925]
[1748780332491,33.26109312,152.3,152.21,7.9698]
[1748780332811,33.26109312,152.3,152.21,18.64964886]
[1748780332812,181.3944171,152.3,152.21,18.64964886]
[1748780336001,181.3944171,152.3,152.21,25.21949566]
[1748780340488,181.3944171,152.3,152.21,18.64964886]
[1748780341401,148.13332398,152.29,152.2,18.64964886]
[1748780341717,1.5085,152.28,152.2,18.64964886]
[1748780343504,6.5672818,152.27,152.2,18.64964886]
[1748780345813,22.9854863,152.27,152.2,18.64964886]